[Event "Fagernes Open 2021"]
[Site "Fagernes"]
[Date "2021.10.14"]
[Round "6.7"]
[White "Ostensen, Nicolai Maxime"]
[Black "Myagmarsuren, Evsuld"]
[Result "0-1"]
[ECO "D48"]
[WhiteElo "1768"]
[BlackElo "1650"]
[Annotator "NA"]
[PlyCount "54"]
[EventDate "2021.10.10"]
[EventCountry "NOR"]
[SourceTitle "playchess.com"]
[Source "ChessBase"]
[SourceQuality "1"]
[TimeControl "40/5400+30:1800+30"]

1. c4 {[%emt 0:00:00]} c6 {[%emt 0:00:00]} 2. d4 {[%emt 0:00:00]} d5 {[%emt 0:00:00]} 3. e3 {[%emt 0:00:00]} Nf6 {[%emt 0:00:00]} 4. Nc3 {[%emt 0:00:00]} e6 {[%emt 0:00:00]} 5. Nf3 {[%emt 0:00:00]} Nbd7 {[%emt 0:00:00]} 6. Bd3 {[%emt 0:00:00]} dxc4 {[%emt 0:00:00]} 7. Bxc4 {[%emt 0:00:00]} b5 {[%emt 0:00:00]} 8. Bd3 {[%emt 0:00:00]} Bb7 {[%emt 0:00:00]} 9. O-O {[%emt 0:00:00]} a6 {[%emt 0:00:00]} 10. e4 {[%emt 0:00:00]} c5 {[%emt 0:00:00]} 11. e5 {[%emt 0:11:25]} cxd4 {[%emt 0:18:49]} 12. Nxb5 {[%emt 0:12:38]} axb5 {[%emt 0:16:59]} 13. exf6 {[%emt 0:00:11]} Qb6 {[%emt 0:00:46]} 14. Bb1 {[%emt 0:06:08]} Nxf6 {[%emt 0:05:31]} 15. Qxd4 {[%emt 0:05:50]} Bc5 {[%emt 0:01:22]} 16. Qf4 {[%emt 0:00:52]} Ra4 {[%emt 0:06:26]} 17. Qb8+ {[%emt 0:03:03]} Ke7 {[%emt 0:00:34]} 18. Qg3 {[%emt 0:07:02]} Rg4 {[%emt 0:13:48]} 19. Qh3 {[%emt 0:01:06]} Qc6 {[%emt 0:01:16]} 20. Kh1 {[%emt 0:06:47]} h6 {[%emt 0:04:35]} 21. Bd2 {[%emt 0:02:21]} Rd8 {[%emt 0:01:06]} 22. Bc3 {[%emt 0:01:08]} Bd4 {[%emt 0:02:16]} 23. Bb4+ {[%emt 0:02:42]} Ke8 {[%emt 0:01:42]} 24. a3 {[%emt 0:01:16]} Bxb2 {[%emt 0:06:06]} 25. Ra2 {[%emt 0:00:39]} Rd5 {[%emt 0:01:07]} 26. Ne1 {[%emt 0:03:46]} Rh5 {[%emt 0:01:40]} 27. Qf3 {[%emt 0:01:07]} Qc7 {[%emt 0:02:43]} 0-1

[Event "Fagernes Open 2021"]
[Site "Fagernes"]
[Date "2021.10.14"]
[Round "6.8"]
[White "Skigelstrand, Live Jorgensen"]
[Black "Cross, Jamie"]
[Result "1/2-1/2"]
[ECO "C10"]
[WhiteElo "1649"]
[BlackElo "1761"]
[Annotator "NA"]
[PlyCount "82"]
[EventDate "2021.10.10"]
[EventCountry "NOR"]
[SourceTitle "playchess.com"]
[Source "ChessBase"]
[SourceQuality "1"]
[TimeControl "40/5400+30:1800+30"]

1. e4 {[%emt 0:00:00]} e6 {[%emt 0:00:00]} 2. d4 {[%emt 0:00:00]} d5 {[%emt 0:00:00]} 3. Nd2 {[%emt 0:00:00]} dxe4 {[%emt 0:00:00]} 4. Nxe4 {[%emt 0:00:00]} Nd7 {[%emt 0:00:00]} 5. Nf3 {[%emt 0:00:00]} Ngf6 {[%emt 0:00:00]} 6. Bd3 {[%emt 0:00:00]} Nxe4 {[%emt 0:00:00]} 7. Bxe4 {[%emt 0:00:00]} Nf6 {[%emt 0:00:00]} 8. Bg5 {[%emt 0:00:00]} Be7 {[%emt 0:00:00]} 9. Bxf6 {[%emt 0:00:00]} Bxf6 {[%emt 0:00:00]} 10. c3 {[%emt 0:00:00]} Qd6 {[%emt 0:00:59]} 11. O-O {[%emt 0:02:30]} O-O {[%emt 0:13:53]} 12. Re1 {[%emt 0:02:11]} g6 {[%emt 0:00:40]} 13. h4 {[%emt 0:17:18]} c5 {[%emt 0:04:58]} 14. h5 {[%emt 0:03:50]} cxd4 {[%emt 0:10:34]} 15. cxd4 {[%emt 0:02:05]} Bd7 {[%emt 0:04:01]} 16. Ne5 {[%emt 0:04:32]} Rad8 {[%emt 0:04:09]} 17. hxg6 {[%emt 0:10:54]} hxg6 {[%emt 0:08:11]} 18. Bxb7 {[%emt 0:10:53]} Rb8 {[%emt 0:03:52]} 19. Be4 {[%emt 0:01:45]} Rxb2 {[%emt 0:00:59]} 20. Re3 {[%emt 0:01:12]} Bxe5 {[%emt 0:07:13]} 21. dxe5 {[%emt 0:00:10]} Qxd1+ {[%emt 0:00:05]} 22. Rxd1 {[%emt 0:00:05]} Ba4 {[%emt 0:00:13]} 23. Rd6 {[%emt 0:04:22]} Rxa2 {[%emt 0:16:17]} 24. Ra6 {[%emt 0:09:37]} Bb3 {[%emt 0:03:28]} 25. Rxa2 {[%emt 0:00:08]} Bxa2 {[%emt 0:00:05]} 26. Ra3 {[%emt 0:00:02]} Bc4 {[%emt 0:00:15]} 27. Rxa7 {[%emt 0:00:09]} Rd8 {[%emt 0:00:29]} 28. g3 {[%emt 0:06:15]} Bd5 {[%emt 0:00:30]} 29. Bxd5 {[%emt 0:03:01]} Rxd5 {[%emt 0:00:09]} 30. f4 {[%emt 0:00:06]} Rd2 {[%emt 0:02:36]} 31. Ra8+ {[%emt 0:02:21]} Kg7 {[%emt 0:00:07]} 32. Ra4 {[%emt 0:01:39]} g5 {[%emt 0:00:35]} 33. Kf1 {[%emt 0:01:12]} Kg6 {[%emt 0:00:29]} 34. fxg5 {[%emt 0:01:53]} Kxg5 {[%emt 0:09:48]} 35. Rf4 {[%emt 0:00:06]} Kg6 {[%emt 0:00:19]} 36. Rf6+ {[%emt 0:00:17]} Kg7 {[%emt 0:00:06]} 37. Rf4 {[%emt 0:02:30]} Ra2 {[%emt 0:00:25]} 38. Rg4+ {[%emt 0:01:19]} Kf8 {[%emt 0:00:14]} 39. Re4 {[%emt 0:00:53]} Ke7 {[%emt 0:01:17]} 40. Re2 {[%emt 0:03:19]} Rxe2 {[%emt 0:01:09]} 41. Kxe2 {[%emt 0:30:02]} f6 {[%emt 0:30:06]} 1/2-1/2

[Event "Fagernes Open 2021"]
[Site "Fagernes"]
[Date "2021.10.14"]
[Round "6.9"]
[White "Dulman, Egmond-Gabriel"]
[Black "Hellesoy, David"]
[Result "1-0"]
[ECO "E20"]
[WhiteElo "2065"]
[BlackElo "1500"]
[Annotator "ChessBase"]
[PlyCount "67"]
[EventDate "2021.10.10"]
[EventCountry "NOR"]
[SourceTitle "playchess.com"]
[Source "ChessBase"]
[SourceQuality "1"]
[TimeControl "40/5400+30:1800+30"]

1. d4 {[%emt 0:00:00]} Nf6 {[%emt 0:00:00]} 2. c4 {[%emt 0:00:00]} e6 {[%emt 0:00:00]} 3. Nc3 {[%emt 0:00:00]} Bb4 {[%emt 0:00:00]} 4. f3 {[%emt 0:00:00]} d5 {[%emt 0:00:00]} 5. Bg5 {[%emt 0:00:00]} c5 {[%emt 0:00:00]} 6. a3 {[%emt 0:00:00]} Bxc3+ {[%emt 0:00:00]} 7. bxc3 {[%emt 0:00:00]} Nc6 {[%emt 0:06:18]} 8. cxd5 {[%emt 0:06:04]} exd5 {[%emt 0:03:48]} 9. e3 {[%emt 0:02:40]} Bf5 {[%emt 0:04:27]} 10. Bd3 {[%emt 0:02:48]} Bxd3 {[%emt 0:02:36]} 11. Qxd3 {[%emt 0:00:08]} c4 {[%emt 0:02:25]} 12. Qc2 {[%emt 0:02:35]} O-O {[%emt 0:06:57]} 13. Ne2 {[%emt 0:01:19]} h6 {[%emt 0:04:46]} 14. Bh4 {[%emt 0:01:49]} Re8 {[%emt 0:00:59]} 15. Bf2 {[%emt 0:01:57]} b5 {[%emt 0:04:53]} 16. O-O {[%emt 0:00:44]} a5 {[%emt 0:02:02]} 17. Ng3 {[%emt 0:04:24]} b4 {[%emt 0:06:32]} 18. e4 {[%emt 0:03:27]} dxe4 {[%emt 0:04:13]} 19. fxe4 {[%emt 0:00:34]} bxc3 {[%emt 0:01:22]} 20. d5 {[%emt 0:01:01]} Ne5 {[%emt 0:02:04]} 21. Bd4 {[%emt 0:01:21]} Rc8 {[%emt 0:07:43]} 22. Qxc3 {[%emt 0:00:55]} Nfd7 {[%emt 0:01:11]} 23. Nf5 {[%emt 0:01:31]} f6 {[%emt 0:01:22]} 24. Qg3 {[%emt 0:01:45]} Re7 {[%emt 0:03:18]} 25. Nxh6+ {[%emt 0:00:28]} Kf8 {[%emt 0:04:59]} 26. Nf5 {[%emt 0:00:48]} Nd3 {[%emt 0:01:04]} 27. Qg6 {[%emt 0:05:33]} N7e5 {[%emt 0:01:34]} 28. Qh7 {[%emt 0:03:28]} g5 {[%emt 0:03:03]} 29. Qh8+ {[%emt 0:01:48]} Kf7 {[%emt 0:00:11]} 30. Nh6+ {[%emt 0:01:34]} Kg6 {[%emt 0:00:54]} 31. Rxf6+ {[%emt 0:00:32]} Kh5 {[%emt 0:00:22]} 32. Ng8+ {[%emt 0:00:27]} Rh7 {[%emt 0:01:02]} 33. Qxh7+ {[%emt 0:00:11]} Kg4 {[%emt 0:00:08]} 34. Qh3# {[%emt 0:00:42]} 1-0

[Event "Fagernes Open 2021"]
[Site "Fagernes"]
[Date "2021.10.14"]
[Round "6.10"]
[White "Unhjem, Bjorn Robert Lovoll"]
[Black "Strand, Amund Pihl"]
[Result "0-1"]
[ECO "E10"]
[WhiteElo "1924"]
[BlackElo "1712"]
[Annotator "NA"]
[PlyCount "138"]
[EventDate "2021.10.10"]
[EventCountry "NOR"]
[SourceTitle "playchess.com"]
[Source "ChessBase"]
[SourceQuality "1"]
[TimeControl "40/5400+30:1800+30"]

1. d4 {[%emt 0:00:00]} Nf6 {[%emt 0:00:00]} 2. c4 {[%emt 0:00:00]} c5 {[%emt 0:00:00]} 3. d5 {[%emt 0:00:00]} e6 {[%emt 0:00:00]} 4. Nf3 {[%emt 0:00:00]} b5 {[%emt 0:00:00]} 5. dxe6 {[%emt 0:00:00]} fxe6 {[%emt 0:00:00]} 6. cxb5 {[%emt 0:00:00]} d5 {[%emt 0:00:00]} 7. a4 {[%emt 0:00:00]} Bd6 {[%emt 0:01:29]} 8. g3 {[%emt 0:00:00]} O-O {[%emt 0:01:57]} 9. Bg2 {[%emt 0:00:00]} Nbd7 {[%emt 0:11:33]} 10. O-O {[%emt 0:00:00]} Bb7 {[%emt 0:10:42]} 11. Ng5 {[%emt 0:00:00]} Qe7 {[%emt 0:02:47]} 12. Nd2 {[%emt 0:20:49]} h6 {[%emt 0:03:47]} 13. Ngf3 {[%emt 0:00:19]} a6 {[%emt 0:00:08]} 14. Nh4 {[%emt 0:01:13]} Qf7 {[%emt 0:01:34]} 15. Nc4 {[%emt 0:00:38]} Bc7 {[%emt 0:01:59]} 16. Ra3 {[%emt 0:06:53]} g5 {[%emt 0:07:52]} 17. Nf3 {[%emt 0:00:21]} dxc4 {[%emt 0:03:40]} 18. Nxg5 {[%emt 0:01:03]} hxg5 {[%emt 0:00:40]} 19. Bxb7 {[%emt 0:00:07]} Ra7 {[%emt 0:01:12]} 20. bxa6 {[%emt 0:00:24]} Qh5 {[%emt 0:13:05]} 21. Qd2 {[%emt 0:03:03]} Nb8 {[%emt 0:07:47]} 22. Qxg5+ {[%emt 0:11:08]} Qxg5 {[%emt 0:00:07]} 23. Bxg5 {[%emt 0:00:07]} Nxa6 {[%emt 0:00:09]} 24. Bg2 {[%emt 0:00:32]} Nh7 {[%emt 0:10:25]} 25. Bc1 {[%emt 0:06:07]} Be5 {[%emt 0:02:08]} 26. Bc6 {[%emt 0:02:40]} Nb4 {[%emt 0:01:07]} 27. Bb5 {[%emt 0:02:34]} Nc2 {[%emt 0:03:26]} 28. Rc3 {[%emt 0:08:42]} Bxc3 {[%emt 0:07:12]} 29. bxc3 {[%emt 0:00:09]} Rb8 {[%emt 0:01:31]} 30. Bxc4 {[%emt 0:02:50]} Rxa4 {[%emt 0:00:37]} 31. Bxe6+ {[%emt 0:00:15]} Kg7 {[%emt 0:00:16]} 32. Bf5 {[%emt 0:03:02]} Na3 {[%emt 0:01:12]} 33. Rd1 {[%emt 0:06:02]} Nf6 {[%emt 0:00:53]} 34. f3 {[%emt 0:01:44]} Nb5 {[%emt 0:00:46]} 35. Bf4 {[%emt 0:03:43]} Nxc3 {[%emt 0:01:49]} 36. Rd2 {[%emt 0:02:12]} Re8 {[%emt 0:00:36]} 37. e4 {[%emt 0:01:22]} Ra1+ {[%emt 0:01:03]} 38. Kf2 {[%emt 0:00:25]} Ra2 {[%emt 0:01:08]} 39. g4 {[%emt 0:02:34]} Rxd2+ {[%emt 0:00:59]} 40. Bxd2 {[%emt 0:00:08]} Nb5 {[%emt 0:00:43]} 41. g5 {[%emt 0:38:32]} Ng8 {[%emt 0:31:21]} 42. Ke3 {[%emt 0:01:30]} c4 {[%emt 0:00:00]} 43. Bc1 {[%emt 0:00:00]} Rd8 {[%emt 0:00:00]} 44. Be6 {[%emt 0:00:00]} c3 {[%emt 0:00:00]} 45. Bb3 {[%emt 0:00:00]} Ne7 {[%emt 0:00:00]} 46. Ba4 {[%emt 0:00:00]} Nc7 {[%emt 0:00:00]} 47. Ke2 {[%emt 0:00:00]} Ra8 {[%emt 0:00:00]} 48. Bb3 {[%emt 0:00:00]} Nb5 {[%emt 0:00:00]} 49. Kd3 {[%emt 0:00:00]} Nc6 {[%emt 0:00:00]} 50. Bf4 {[%emt 0:00:00]} Rf8 {[%emt 0:00:00]} 51. Be3 {[%emt 0:06:12]} Rxf3 {[%emt 0:00:00]} 52. Ba4 {[%emt 0:01:39]} Ncd4 {[%emt 0:00:28]} 53. Bd1 {[%emt 0:00:47]} Rh3 {[%emt 0:01:43]} 54. Bg4 {[%emt 0:00:23]} Rxh2 {[%emt 0:00:20]} 55. Bd7 {[%emt 0:00:58]} Rh1 {[%emt 0:01:57]} 56. Bf4 {[%emt 0:02:04]} Rd1+ {[%emt 0:01:25]} 57. Kc4 {[%emt 0:00:47]} c2 {[%emt 0:00:19]} 58. Bg4 {[%emt 0:03:41]} c1=Q+ {[%emt 0:00:39]} 59. Bxc1 {[%emt 0:00:02]} Rxc1+ {[%emt 0:00:14]} 60. Kd5 {[%emt 0:00:13]} Rg1 {[%emt 0:00:15]} 61. Bd7 {[%emt 0:00:24]} Rxg5+ {[%emt 0:00:15]} 62. e5 {[%emt 0:00:13]} Kf7 {[%emt 0:00:45]} 63. Ke4 {[%emt 0:01:03]} Ke7 {[%emt 0:00:12]} 64. Kf4 {[%emt 0:00:09]} Rg1 {[%emt 0:00:33]} 65. Bg4 {[%emt 0:00:25]} Ne6+ {[%emt 0:00:21]} 66. Kf5 {[%emt 0:00:27]} Nbd4+ {[%emt 0:00:09]} 67. Kg6 {[%emt 0:00:09]} Rxg4+ {[%emt 0:00:07]} 68. Kh5 {[%emt 0:00:34]} Rg5+ {[%emt 0:00:09]} 69. Kh6 {[%emt 0:00:13]} Kf7 {[%emt 0:00:09]} 0-1

[Event "Fagernes Open 2021"]
[Site "Fagernes"]
[Date "2021.10.14"]
[Round "6.11"]
[White "Lye, Sigurd"]
[Black "Shehzad, Alina"]
[Result "1-0"]
[ECO "B31"]
[WhiteElo "1821"]
[BlackElo "1189"]
[Annotator "NA"]
[PlyCount "119"]
[EventDate "2021.10.10"]
[EventCountry "NOR"]
[SourceTitle "playchess.com"]
[Source "ChessBase"]
[SourceQuality "1"]
[TimeControl "40/5400+30:1800+30"]

1. e4 {[%emt 0:00:00]} c5 {[%emt 0:00:00]} 2. Nf3 {[%emt 0:00:00]} Nc6 {[%emt 0:00:00]} 3. Bb5 {[%emt 0:00:00]} g6 {[%emt 0:00:00]} 4. O-O {[%emt 0:00:00]} Bg7 {[%emt 0:00:00]} 5. c3 {[%emt 0:00:00]} Nf6 {[%emt 0:00:00]} 6. Re1 {[%emt 0:00:00]} O-O {[%emt 0:00:00]} 7. d4 {[%emt 0:00:00]} d5 {[%emt 0:00:00]} 8. e5 {[%emt 0:00:00]} Ne4 {[%emt 0:00:00]} 9. Nbd2 {[%emt 0:00:00]} Bf5 {[%emt 0:06:54]} 10. Nh4 {[%emt 0:08:47]} Nxd2 {[%emt 0:14:25]} 11. Nxf5 {[%emt 0:01:20]} gxf5 {[%emt 0:00:37]} 12. Qxd2 {[%emt 0:01:36]} cxd4 {[%emt 0:03:18]} 13. cxd4 {[%emt 0:00:58]} e6 {[%emt 0:00:58]} 14. Bxc6 {[%emt 0:05:56]} bxc6 {[%emt 0:01:11]} 15. b3 {[%emt 0:00:15]} Kh8 {[%emt 0:04:45]} 16. Ba3 {[%emt 0:01:56]} Rg8 {[%emt 0:00:25]} 17. Rac1 {[%emt 0:00:35]} Rc8 {[%emt 0:06:55]} 18. Rc3 {[%emt 0:10:46]} Qh4 {[%emt 0:05:38]} 19. f4 {[%emt 0:18:05]} Bh6 {[%emt 0:09:21]} 20. Rf1 {[%emt 0:01:12]} Rg4 {[%emt 0:04:55]} 21. Rcf3 {[%emt 0:14:31]} Rcg8 {[%emt 0:11:30]} 22. R1f2 {[%emt 0:07:02]} Bf8 {[%emt 0:15:57]} 23. Bxf8 {[%emt 0:03:40]} Rxf8 {[%emt 0:00:13]} 24. Kf1 {[%emt 0:01:51]} Qh6 {[%emt 0:01:51]} 25. Rh3 {[%emt 0:01:34]} Qg7 {[%emt 0:01:06]} 26. Rc3 {[%emt 0:00:56]} Rc8 {[%emt 0:00:47]} 27. Qc1 {[%emt 0:01:51]} Qh6 {[%emt 0:00:43]} 28. h3 {[%emt 0:01:30]} Rh4 {[%emt 0:00:42]} 29. Rcf3 {[%emt 0:03:18]} Qg7 {[%emt 0:02:42]} 30. Qc5 {[%emt 0:03:40]} Qf8 {[%emt 0:03:03]} 31. Qxf8+ {[%emt 0:01:25]} Rxf8 {[%emt 0:00:12]} 32. Rc3 {[%emt 0:00:55]} Rc8 {[%emt 0:00:16]} 33. b4 {[%emt 0:00:27]} Rb8 {[%emt 0:00:59]} 34. a3 {[%emt 0:00:42]} Rb6 {[%emt 0:00:52]} 35. Rc5 {[%emt 0:02:14]} Ra6 {[%emt 0:01:15]} 36. Rf3 {[%emt 0:00:56]} Kg7 {[%emt 0:00:53]} 37. Kf2 {[%emt 0:01:04]} Rh6 {[%emt 0:00:11]} 38. Rfc3 {[%emt 0:00:23]} Kf8 {[%emt 0:00:43]} 39. Rxc6 {[%emt 0:00:10]} Rxc6 {[%emt 0:02:22]} 40. Rxc6 {[%emt 0:00:06]} Ke8 {[%emt 0:00:11]} 41. Ra6 {[%emt 0:31:01]} Rg6 {[%emt 0:30:46]} 42. Rxa7 {[%emt 0:00:16]} Rg7 {[%emt 0:00:22]} 43. b5 {[%emt 0:00:29]} Kd8 {[%emt 0:00:11]} 44. b6 {[%emt 0:00:10]} Kc8 {[%emt 0:00:15]} 45. a4 {[%emt 0:00:36]} Kb8 {[%emt 0:00:21]} 46. a5 {[%emt 0:00:33]} Rg8 {[%emt 0:00:16]} 47. Rxf7 {[%emt 0:00:12]} Rc8 {[%emt 0:00:16]} 48. a6 {[%emt 0:00:52]} Rd8 {[%emt 0:00:58]} 49. Rxh7 {[%emt 0:00:20]} Re8 {[%emt 0:00:40]} 50. Rf7 {[%emt 0:00:20]} Ka8 {[%emt 0:00:36]} 51. h4 {[%emt 0:00:18]} Kb8 {[%emt 0:00:31]} 52. h5 {[%emt 0:00:06]} Ka8 {[%emt 0:00:10]} 53. h6 {[%emt 0:00:08]} Kb8 {[%emt 0:00:18]} 54. h7 {[%emt 0:00:07]} Ka8 {[%emt 0:00:09]} 55. Rg7 {[%emt 0:00:07]} Kb8 {[%emt 0:00:26]} 56. Rg8 {[%emt 0:00:06]} Kc8 {[%emt 0:00:14]} 57. Rxe8+ {[%emt 0:00:25]} Kd7 {[%emt 0:00:22]} 58. Kf3 {[%emt 0:00:27]} Kxe8 {[%emt 0:00:26]} 59. h8=Q+ {[%emt 0:00:11]} Kd7 {[%emt 0:00:15]} 60. Qg7+ {[%emt 0:00:18]} 1-0

[Event "Fagernes Open 2021"]
[Site "Fagernes"]
[Date "2021.10.14"]
[Round "6.12"]
[White "Bronmo, Askild Skovgaard"]
[Black "Orban, Tiberiu"]
[Result "1-0"]
[ECO "B40"]
[WhiteElo "1637"]
[BlackElo "1731"]
[Annotator "NA"]
[PlyCount "91"]
[EventDate "2021.10.10"]
[EventCountry "NOR"]
[SourceTitle "playchess.com"]
[Source "ChessBase"]
[SourceQuality "1"]
[TimeControl "40/5400+30:1800+30"]

1. e4 {[%emt 0:00:00]} c5 {[%emt 0:00:00]} 2. Nf3 {[%emt 0:00:00]} e6 {[%emt 0:00:00]} 3. g3 {[%emt 0:00:00]} Nc6 {[%emt 0:00:00]} 4. Bg2 {[%emt 0:00:00]} d6 {[%emt 0:00:00]} 5. O-O {[%emt 0:00:00]} Be7 {[%emt 0:00:00]} 6. d4 {[%emt 0:00:00]} cxd4 {[%emt 0:00:00]} 7. Nxd4 {[%emt 0:00:00]} e5 {[%emt 0:00:00]} 8. Ne2 {[%emt 0:02:33]} Nf6 {[%emt 0:00:00]} 9. c4 {[%emt 0:05:31]} Bg4 {[%emt 0:06:00]} 10. Be3 {[%emt 0:05:03]} Be6 {[%emt 0:08:39]} 11. b3 {[%emt 0:06:50]} O-O {[%emt 0:00:58]} 12. h3 {[%emt 0:04:15]} Qd7 {[%emt 0:06:32]} 13. Kh2 {[%emt 0:00:40]} Ne8 {[%emt 0:01:21]} 14. Nbc3 {[%emt 0:08:25]} f5 {[%emt 0:01:54]} 15. exf5 {[%emt 0:05:34]} Bxf5 {[%emt 0:01:18]} 16. Nd5 {[%emt 0:00:43]} Bd8 {[%emt 0:01:30]} 17. Nec3 {[%emt 0:05:04]} Nf6 {[%emt 0:02:08]} 18. Qe2 {[%emt 0:06:45]} Nxd5 {[%emt 0:01:15]} 19. Nxd5 {[%emt 0:00:34]} Ne7 {[%emt 0:00:19]} 20. Rad1 {[%emt 0:03:10]} Kh8 {[%emt 0:01:16]} 21. Qd2 {[%emt 0:05:31]} Be6 {[%emt 0:02:12]} 22. Nxe7 {[%emt 0:07:21]} Bxe7 {[%emt 0:01:32]} 23. c5 {[%emt 0:00:14]} d5 {[%emt 0:00:05]} 24. Bxd5 {[%emt 0:00:23]} Bxh3 {[%emt 0:00:03]} 25. Bg2 {[%emt 0:04:30]} Qxd2 {[%emt 0:00:51]} 26. Rxd2 {[%emt 0:00:08]} Bxg2 {[%emt 0:00:13]} 27. Kxg2 {[%emt 0:00:04]} Rac8 {[%emt 0:03:18]} 28. Rd5 {[%emt 0:02:43]} Bf6 {[%emt 0:00:37]} 29. Rd7 {[%emt 0:01:25]} Rb8 {[%emt 0:02:35]} 30. Rfd1 {[%emt 0:01:17]} h6 {[%emt 0:03:32]} 31. b4 {[%emt 0:03:49]} a6 {[%emt 0:00:18]} 32. R1d6 {[%emt 0:00:16]} Rfd8 {[%emt 0:04:49]} 33. Kf3 {[%emt 0:02:11]} Rxd7 {[%emt 0:03:02]} 34. Rxd7 {[%emt 0:01:26]} Bg5 {[%emt 0:02:05]} 35. Bxg5 {[%emt 0:01:45]} hxg5 {[%emt 0:00:05]} 36. Ke4 {[%emt 0:00:11]} Rf8 {[%emt 0:00:14]} 37. f3 {[%emt 0:00:39]} g4 {[%emt 0:00:57]} 38. fxg4 {[%emt 0:00:47]} Rf2 {[%emt 0:00:29]} 39. Kxe5 {[%emt 0:00:10]} Re2+ {[%emt 0:01:37]} 40. Kd6 {[%emt 0:01:24]} Rd2+ {[%emt 0:00:21]} 41. Ke7 {[%emt 0:30:37]} Rxa2 {[%emt 0:32:11]} 42. Rxb7 {[%emt 0:00:09]} Ra3 {[%emt 0:00:13]} 43. c6 {[%emt 0:00:19]} Kh7 {[%emt 0:00:17]} 44. c7 {[%emt 0:00:19]} Re3+ {[%emt 0:02:09]} 45. Kd7 {[%emt 0:00:22]} Rd3+ {[%emt 0:00:21]} 46. Kc8 {[%emt 0:00:08]} 1-0

[Event "Fagernes Open 2021"]
[Site "Fagernes"]
[Date "2021.10.14"]
[Round "6.13"]
[White "Stokhaug, Jon Arne"]
[Black "Bach, Oliver"]
[Result "1-0"]
[ECO "D45"]
[WhiteElo "1861"]
[BlackElo "1715"]
[Annotator "NA"]
[PlyCount "81"]
[EventDate "2021.10.10"]
[EventCountry "NOR"]
[SourceTitle "playchess.com"]
[Source "ChessBase"]
[SourceQuality "1"]
[TimeControl "40/5400+30:1800+30"]

1. d4 {[%emt 0:00:00]} d5 {[%emt 0:00:00]} 2. Nf3 {[%emt 0:00:00]} Nf6 {[%emt 0:00:00]} 3. c4 {[%emt 0:00:00]} c6 {[%emt 0:00:00]} 4. Nc3 {[%emt 0:00:00]} e6 {[%emt 0:00:00]} 5. e3 {[%emt 0:00:00]} Bd6 {[%emt 0:00:00]} 6. Bd3 {[%emt 0:00:00]} dxc4 {[%emt 0:00:00]} 7. Bxc4 {[%emt 0:00:00]} O-O {[%emt 0:00:00]} 8. e4 {[%emt 0:00:00]} Bb4 {[%emt 0:00:00]} 9. Qc2 {[%emt 0:00:00]} h6 {[%emt 0:00:00]} 10. O-O {[%emt 0:00:00]} Bxc3 {[%emt 0:00:51]} 11. bxc3 {[%emt 0:00:00]} b5 {[%emt 0:00:32]} 12. Bd3 {[%emt 0:00:00]} Qe7 {[%emt 0:03:14]} 13. a4 {[%emt 0:00:00]} Qb7 {[%emt 0:01:35]} 14. Rb1 {[%emt 0:02:38]} a6 {[%emt 0:01:18]} 15. c4 {[%emt 0:07:59]} b4 {[%emt 0:04:49]} 16. e5 {[%emt 0:01:01]} Ne8 {[%emt 0:01:01]} 17. a5 {[%emt 0:04:29]} Qc7 {[%emt 0:03:25]} 18. Rxb4 {[%emt 0:00:37]} Qxa5 {[%emt 0:00:48]} 19. Ra4 {[%emt 0:00:12]} Qd8 {[%emt 0:05:17]} 20. Ba3 {[%emt 0:00:11]} Nd7 {[%emt 0:03:22]} 21. Bxf8 {[%emt 0:00:10]} Nxf8 {[%emt 0:00:14]} 22. h3 {[%emt 0:02:47]} Nc7 {[%emt 0:01:03]} 23. Be4 {[%emt 0:00:37]} Bd7 {[%emt 0:00:48]} 24. Rb4 {[%emt 0:01:47]} a5 {[%emt 0:07:10]} 25. Rb2 {[%emt 0:03:02]} Na6 {[%emt 0:00:26]} 26. Qc3 {[%emt 0:05:01]} Nb4 {[%emt 0:03:26]} 27. Nd2 {[%emt 0:01:34]} f5 {[%emt 0:13:10]} 28. exf6 {[%emt 0:03:19]} Qxf6 {[%emt 0:00:41]} 29. Nf3 {[%emt 0:01:08]} Qf4 {[%emt 0:02:06]} 30. Qe3 {[%emt 0:01:32]} Qf6 {[%emt 0:02:28]} 31. Ra1 {[%emt 0:01:06]} Qd8 {[%emt 0:02:01]} 32. Qa3 {[%emt 0:01:27]} Qb8 {[%emt 0:07:52]} 33. Rxb4 {[%emt 0:04:39]} Qf4 {[%emt 0:03:31]} 34. Qe3 {[%emt 0:01:35]} Qf6 {[%emt 0:00:50]} 35. Rba4 {[%emt 0:00:54]} Rb8 {[%emt 0:05:16]} 36. Rxa5 {[%emt 0:00:52]} Rb2 {[%emt 0:00:42]} 37. Ra8 {[%emt 0:03:07]} Rb4 {[%emt 0:01:13]} 38. Ne5 {[%emt 0:00:27]} Rb7 {[%emt 0:01:49]} 39. Ng6 {[%emt 0:01:00]} Be8 {[%emt 0:00:54]} 40. Rxe8 {[%emt 0:00:11]} Rf7 {[%emt 0:00:28]} 41. Raa8 {[%emt 0:30:47]} 1-0